Cogmind - Beta 16 @@@ ROGUE MODE // 2025.10.27 @ 23:37:20 Player: astyreal Result: Destroyed by Y-45 Defender with Beam Rifle Performance ------------- Evolutions (1) 500 Regions Visited (3) 600 Robots Destroyed (29) 145 Value Destroyed (689) 689 Prototype IDs (0) 0 Alien Tech Used (0) 0 Bonus (0) 0 TOTAL SCORE: 1934 Bonus ------- None Cogmind --------- Core Integrity 0/400 Matter 300/300 Energy 100/100 System Corruption 1% Temperature Cool (15) Movement Core (100) Ox1 Location -9/Storage Parts ------- > --- POWER (1) -------- (None) > --- PROPULSION (3) --- (None) > --- UTILITY (3) ------ Small Storage Unit > --- WEAPON (2) ------- Light Assault Rifle > --- INVENTORY (8) ---- Light Ion Engine Improved Ion Engine Light Treads Compact Wheel Large Storage Unit Large Battery (200) Medium Armor Plating Peak State ------------ > --- POWER ------------ Light Nuclear Core > --- PROPULSION ------- Aluminum Leg Aluminum Leg Aluminum Leg > --- UTILITY ---------- Large Storage Unit Signal Interpreter Improved Terrain Scanner > --- WEAPON ----------- Small Laser Beam Cannon > --- INVENTORY -------- Ion Engine Ion Engine Light Ion Engine Light Treads Compact Wheel Small Storage Unit Core Shielding [Rating: 13] Favorites ----------- Power Ion Engine Engine Ion Engine Power Core Light Nuclear Core Propulsion Aluminum Leg Treads Light Treads Leg Aluminum Leg Utility Small Storage Unit Device Improved Terrain Scanner Storage Small Storage Unit Processor Signal Interpreter Protection Core Shielding Weapon Small Laser Energy Gun Small Laser Energy Cannon Beam Cannon Ballistic Gun Assault Rifle Launcher Rocket Launcher Build | -11 -10 -9 -9 ------- Run | Yrd Mat Mat Sto Slots Evolved 2 | . . 2 . Power . | . . . . Propulsion 1 | . . 1 . Utility 1 | . . 1 . Weapon . | . . . . Parts Attached 26 | 7 5 3 11 Power 3 | 1 . 1 1 Engine 2 | 1 . . 1 Core 1 | . . 1 . Reactor . | . . . . Propulsion 6 | 2 . 1 3 Treads 1 | . . . 1 Leg 5 | 2 . 1 2 Wheel . | . . . . Hover . | . . . . Flight . | . . . . Utility 10 | 2 3 1 4 Device 3 | 2 . . 1 Storage 2 | . 1 1 . Processor 2 | . 1 . 1 Hackware . | . . . . Protection 3 | . 1 . 2 Artifact . | . . . . Weapon 7 | 2 2 . 3 Energy Gun 2 | 1 1 . . Energy Cannon 2 | . 1 . 1 Ballistic Gun 2 | 1 . . 1 Ballistic Cannon . | . . . . Launcher 1 | . . . 1 Special Weapon . | . . . . Impact Weapon . | . . . . Slashing Weapon . | . . . . Piercing Weapon . | . . . . Special Melee Weapon . | . . . . Unidentified Prototypes . | . . . . Parts Lost 15 | . . . 15 Power 3 | . . . 3 Propulsion 5 | . . . 5 Utility 3 | . . . 3 Weapon 4 | . . . 4 Highest Loss Streak 7 | . . . 7 To Critical Strikes . | . . . . Average Backups 6 | 4 7 6 7 Power 2 | . 1 2 3 Propulsion 2 | 2 3 2 1 Utility 2 | . 2 1 2 Weapon . | . . . . Tool/Special . | . . . . Unused Backups 8 | . 3 . 5 Power 3 | . 1 . 2 Propulsion 2 | . 1 . 1 Utility 3 | . 1 . 2 Weapon . | . . . . Tool/Special . | . . . . Average Slot Usage (%) 82 | . 99 96 70 Engine 8 | . 14 8 6 Core 1 | . . 2 2 Treads 3 | . . . 5 Leg 20 | . 28 33 12 Device 5 | . 9 7 3 Storage 11 | . 13 11 11 Processor 8 | . 4 11 8 Protection 3 | . . . 6 Energy Gun 6 | . 11 11 2 Energy Cannon 7 | . 5 11 7 Ballistic Gun 2 | . 11 . . Launcher 1 | . . . 2 Peak Build Rating 13 | 9 9 13 13 Average Rating 8 | 6 8 11 8 On Entrance 7 | . 9 9 13 Avg Prop Armor Cover (%) . | . . . . Naked Turns . | . . . . Heaviest Build 30 | 10 16 30 30 Greatest Support 30 | 20 20 30 30 Greatest Overweight (x) 2 | . . . 2 Average Overweight (x) . | . . . . Largest Inventory Capacity 15 | 5 8 15 15 Average Capacity 9 | 5 7 11 9 Most Carried 9 | 5 8 8 9 Average Carried 6 | 4 7 6 7 Final Capacity 15 | 5 8 15 8 Final Carried 8 | 5 8 8 7 Class Distribution -------------------- 100% | Mutant Dominant Class ---------------- Mutant | -10/Materials Mutant | -9/Materials Mutant | -9/Storage Resources | -11 -10 -9 -9 ----------- Run | Yrd Mat Mat Sto Matter Collected 681 | 324 95 63 199 Remotely 125 | 125 . . . Salvage Created 895 | 216 145 289 245 Parts 58 | 20 8 13 17 Haulers Intercepted . | . . . . Recyclers Shooed 1 | 1 . . . Parts Field Recycled . | . . . . Retrieved Matter . | . . . . Parts Self-Destructed . | . . . . Prevented . | . . . . Parts Restored . | . . . . Kills | -11 -10 -9 -9 ------- Run | Yrd Mat Mat Sto Combat Hostiles Destroyed 18 | . 2 6 10 Guns 4 | . 2 2 . Cannons 12 | . . 4 8 AOE 2 | . . . 2 Classes Destroyed 8 | 3 2 1 2 Worker 2 | 2 . . . Tunneler 5 | 5 . . . Recycler 2 | 1 1 . . Operator 1 | . 1 . . Watcher 1 | . . . 1 Swarmer 4 | . . . 4 Grunt 11 | . 2 4 5 Sentry 3 | . . 2 1 Best Kill Streak 5 | 5 1 3 3 Combat Bots Only 3 | . 1 3 3 Max Kills in Single Turn 1 | 1 1 1 1 Gunslinging . | . . . . Exploded 1 | . . . 1 Melee . | . . . . Uniques/NPCs Destroyed . | . . . . Combat | -11 -10 -9 -9 -------- Run | Yrd Mat Mat Sto Hostile Shots Fired 191 | . 10 31 150 Missed 61 | . . 4 57 Hits 130 | . 10 27 93 Projectile 130 | . 10 27 93 Critical Strikes 3 | . . 2 1 Damage Taken 1656 | . 134 397 1125 Core 436 | . 30 123 283 Absorbed by Shields . | . . . . Redirected to Shielding 36 | . . . 36 Regen/Repaired (Parts) 22 | . . . 22 Core Remaining (%) 94 | 100 88 . . Volleys Fired 84 | 18 14 20 32 Largest 2 | 2 2 2 2 Hottest 125 | 60 80 125 100 Shots Fired 144 | 35 28 39 42 Gun 82 | 35 23 19 5 Cannon 51 | . 5 20 26 Launcher 11 | . . . 11 Special . | . . . . Kinetic 32 | 18 14 . . Thermal 80 | 17 14 39 10 Explosive 11 | . . . 11 Electromagnetic 21 | . . . 21 Robot Hit Streak 8 | 3 5 8 7 Robot Miss Streak 5 | 2 3 5 2 Penetration Max . | . . . . Secondary Targets . | . . . . Shots Hit Robots 83 | 18 14 25 26 Core Hits 44 | 9 9 11 15 Critical Kills . | . . . . Critical Parts Destroyed 1 | 1 . . . Critical Strikes 1 | 1 . . . Destroy 1 | 1 . . . Melee Attacks . | . . . . Impact . | . . . . Slashing . | . . . . Piercing . | . . . . Sneak Attacks . | . . . . Combat Hostiles . | . . . . Follow-up Attacks . | . . . . Damage Inflicted 1676 | 235 182 384 875 Guns 575 | 235 146 171 23 Cannons 616 | . 34 213 369 Explosions 468 | . . . 468 Melee . | . . . . Ramming 17 | . 2 . 15 Kinetic 239 | 137 102 . . Thermal 635 | 98 78 384 75 Explosive 468 | . . . 468 Electromagnetic 317 | . . . 317 Impact . | . . . . Slashing . | . . . . Piercing . | . . . . Highest Corruption 1 | . . . 1 Average Corruption 1 | . . . 1 Corruption Purged . | . . . . Corruption Blocked . | . . . . Effects 4 | . . . 4 Message Errors 2 | . . . 2 Heat Flow Errors 1 | . . . 1 Data Loss (minor) 1 | . . . 1 Overload Shots . | . . . . Overflow Damage 31 | . . . 31 Projectiles 31 | . . . 31 Explosions . | . . . . Melee . | . . . . Knockbacks . | . . . . Impact . | . . . . Kinetic . | . . . . Secondary . | . . . . Self-Inflicted Damage . | . . . . Shots . | . . . . Rammed 2 | . . . 2 Targets Rammed 4 | . 1 . 3 Kicked 2 | . 1 . 1 Crushed . | . . . . Highest Temperature 354 | . 153 354 158 Average Temperature 118 | . 62 193 52 Received Heat Transfer 723 | . 81 213 429 Effects 2 | . . 2 . Shutdowns 1 | . . 1 . Short Circuit 1 | . . 1 . Siege Activations . | . . . . Martial Activations . | . . . . Shielding Activations . | . . . . Robots Disrupted . | . . . . Combat Hostiles . | . . . . Robots Corrupted . | . . . . Combat Hostiles . | . . . . Parts Fried . | . . . . Impact Corruptions . | . . . . Robots Melted . | . . . . Combat Hostiles . | . . . . Parts Melted 4 | . 1 3 . Heat Transferred 1389 | 225 174 829 161 Parts Sabotaged . | . . . . Parts Stolen . | . . . . Parts Stripped . | . . . . Power Chain Reactions . | . . . . Alert | -11 -10 -9 -9 ------- Run | Yrd Mat Mat Sto Maximum Alert Level . | . . . . Low Security (%) 100 | 100 100 100 100 Level 1 . | . . . . Level 2 . | . . . . Level 3 . | . . . . Level 4 . | . . . . Level 5 . | . . . . High Security . | . . . . Max Security . | . . . . Peak Influence 137 | 15 30 137 102 Initial 51 | . . . 51 Average 39 | 3 9 58 55 Influence Increases 727 | 40 89 192 406 Destroy 0b10 Robot/C 360 | . 40 120 200 Destroy 0b10 Robot/NC 55 | 40 10 . 5 Destroy Leader 92 | . 10 40 42 Successful Hack 20 | . 14 . 6 Disable Machine 30 | . . 15 15 Destroy Structure 65 | . . 2 63 Lose Combat Pursuer 105 | . 15 15 75 Influence Decreases 706 | 40 89 70 507 Entered New Map 71 | . . . 71 Time Decay 485 | 40 89 70 286 Lost Part 150 | . . . 150 Squads Dispatched 4 | . . . 4 Investigation 1 | . . . 1 Extermination . | . . . . Reinforcement 1 | . . . 1 Assault . | . . . . Garrison 2 | . . . 2 Intercept . | . . . . Searches Triggered . | . . . . Construction Impeded . | . . . . Haulers Reinforced . | . . . . Active Scanning Responses . | . . . . Cargo Convoy Interrupts . | . . . . Stealth | -11 -10 -9 -9 --------- Run | Yrd Mat Mat Sto Distress Signals 2 | . . 1 1 Communications Jammed . | . . . . Distress Signals . | . . . . Times Spotted 39 | . 7 8 24 Peak Tracking Total 8 | . 2 4 8 Tactical Retreats 6 | . 1 1 4 Traps | -11 -10 -9 -9 ------- Run | Yrd Mat Mat Sto Traps Triggered . | . . . . Indirectly . | . . . . Trap Hack Attempts . | . . . . Triggered . | . . . . Disarmed . | . . . . Reprogrammed . | . . . . Reused . | . . . . Traps Extracted . | . . . . Installed . | . . . . Triggered . | . . . . Machines | -11 -10 -9 -9 ---------- Run | Yrd Mat Mat Sto Machines Disabled 2 | . . 1 1 Max in Single Turn 1 | . . 1 1 Machines Repaired . | . . . . Machines Dismantled . | . . . . Machines Sabotaged . | . . . . Overloaded Fab Kills . | . . . . Hacking | -11 -10 -9 -9 --------- Run | Yrd Mat Mat Sto Machines Accessed 9 | . 3 . 6 Terminals 8 | . 3 . 5 Fabricators . | . . . . Repair Stations 1 | . . . 1 Recycling Units . | . . . . Scanalyzers . | . . . . Garrison Access . | . . . . Total Hacks 24 | . 5 . 19 Successful 15 | . 4 . 11 Failed 9 | . 1 . 8 Catastrophic 2 | . . . 2 Database Lockouts . | . . . . Manual . | . . . . Terminals 17 | . 5 . 12 Fabricators . | . . . . Repair Stations 7 | . . . 7 Recycling Units . | . . . . Scanalyzers . | . . . . Garrison Access . | . . . . Terminal Hacks 9 | . 4 . 5 Record 3 | . 1 . 2 Locate Traps 1 | . 1 . . Transport Status 1 | . . . 1 Recall Investigation 1 | . . . 1 Hauler Manifests 1 | . 1 . . Zone Layout 2 | . 1 . 1 Fabricator Hacks . | . . . . Repair Station Hacks 6 | . . . 6 Scan Component 4 | . . . 4 Repair 2 | . . . 2 Recycling Unit Hacks . | . . . . Scanalyzer . | . . . . Garrison Access Hacks . | . . . . Unauthorized Hacks . | . . . . Terminals . | . . . . Fabricators . | . . . . Repair Stations . | . . . . Recycling Units . | . . . . Scanalyzers . | . . . . Garrison Access . | . . . . Data Cores Recovered 1 | . 1 . . Used 1 | . 1 . . Hacking Detections 7 | . 1 . 6 Full Trace Events 3 | . . . 3 Feedback Events 1 | . . . 1 Corruption 1 | . . . 1 Feedback Blocked . | . . . . Robot Schematics Acquired . | . . . . Robots Built . | . . . . Authchips . | . . . . Time . | . . . . Total Robot Build Rating . | . . . . Part Schematics Acquired . | . . . . Parts Built . | . . . . Authchips . | . . . . Time . | . . . . Total Part Build Rating . | . . . . Part Studies Acquired . | . . . . Parts Repaired 2 | . . . 2 Time 64 | . . . 64 Parts Recycled . | . . . . Recycled Matter . | . . . . Retrieved Matter . | . . . . Retrieved Components . | . . . . Parts Scanalyzed . | . . . . Part Schematics Acquired . | . . . . Parts Damaged . | . . . . Bothacking | -11 -10 -9 -9 ------------ Run | Yrd Mat Mat Sto Used RIF Installer . | . . . . Robots Hacked . | . . . . Non-combat . | . . . . Combat . | . . . . Robot Hacks Applied . | . . . . Relay Couplers Released . | . . . . Fabnet Peak Effective % . | . . . . Robots Rewired . | . . . . Allies Hacked . | . . . . Hacks Repelled . | . . . . Allies | -11 -10 -9 -9 -------- Run | Yrd Mat Mat Sto Total Allies . | . . . . Largest Group . | . . . . Highest-Rated Group . | . . . . Highest-Rated Ally . | . . . . Total Orders . | . . . . Ally Attacks . | . . . . Total Damage . | . . . . Kills . | . . . . Allies Corrupted . | . . . . Allies Melted . | . . . . Intel | -11 -10 -9 -9 ------- Run | Yrd Mat Mat Sto Active Infowar (turns) 533 | 62 143 150 178 Sensors 65 | . . . 65 Terrain 468 | 62 143 150 113 Robot Analysis Total . | . . . . Derelict Logs Recovered . | . . . . Drone Launches . | . . . . Drone Recoveries . | . . . . Exploration | -11 -10 -9 -9 ------------- Run | Yrd Mat Mat Sto Turns Passed 1248 | 171 241 215 621 Spaces Moved 665 | 91 149 116 309 Core 9 | 8 . . 1 Treads 125 | . . . 125 Legs 531 | 83 149 116 183 Wheels . | . . . . Hover . | . . . . Flight . | . . . . Fastest Speed 50 | 50 120 120 120 Average Speed 128 | 113 120 120 140 Slowest Speed 260 | 120 120 120 260 Overloaded Moves . | . . . . Propulsion Burnouts . | . . . . Robots Hopped . | . . . . Potential Cave-ins . | . . . . Cave-ins Triggered . | . . . . Exploration Rate (%) 24 | 3 30 14 49 Regions Visited 3 Branch Regions 1 Pre-discovered Areas . | . . . . Known Exits Taken 2 | . 1 1 . Unknown Exits Taken 1 | 1 . . . Scrap Searched . | . . . . Spaces Dug . | . . . . Terrain Destroyed 76 | . . . 76 Melee . | . . . . Projectile . | . . . . AOE 76 | . . . 76 Terrain Rammed . | . . . . Walls Destroyed . | . . . . Machines Disabled . | . . . . Actions | -11 -10 -9 -9 --------- Run | Yrd Mat Mat Sto Total 905 | 120 184 153 448 Wait 87 | . 1 6 80 Move 662 | 90 148 115 309 Hop . | . . . . Pick Up 21 | 5 8 3 5 Fast Attach 14 | 7 1 . 6 Attach 11 | . 1 4 6 Detach 4 | . . 2 2 Swap 10 | . 4 2 4 Drop 8 | . 6 1 1 Fire 84 | 18 14 20 32 Melee . | . . . . Ram . | . . . . Kick 2 | . 1 . 1 Crush 2 | . . . 2 Escape Stasis . | . . . . Rewire . | . . . . Trap . | . . . . Miscellaneous . | . . . . Route ------- -11/Scrapyard -10/Materials -9/Materials (discovered 2 exits: *Min / *Sto) -9/Storage History --------- Turn | Location | Event 6 | -11/Scrapyard | Discovered new exit (range 15) 172 | -11/Scrapyard | Entered Materials 321 | -10/Materials | Build established: Mutant 407 | -10/Materials | Discovered new exit (range 6) 412 | -10/Materials | Identified exit to Materials 413 | -10/Materials | Entered another Materials area 413 | -9/Materials | Evolved 2 slots: Propulsion x1, Utility x1 521 | -9/Materials | Discovered new exit (range 10) 596 | -9/Materials | Identified exit to Mines 621 | -9/Materials | Discovered new exit (range 7) 627 | -9/Materials | Identified exit to Storage 628 | -9/Materials | Entered Storage 656 | -9/Storage | Repaired Beam Cannon 694 | -9/Storage | Repaired Lgt. Nuclear Core 774 | -9/Storage | Core integrity fell below 50% 809 | -9/Storage | Lost 7 parts (1p3n1u2w) 922 | -9/Storage | Garrison activated, responded to threat 1060 | -9/Storage | Garrison activated, responded to threat 1234 | -9/Storage | Core integrity fell below 20% 1249 | -9/Storage | Destroyed by Y-45 Defender with Beam Rifle Last Messages --------------- Acquired 15 matter. Acquired Lgt. Assault Rifle. K-01 Serf cleans the Terminal. O-16 Technician uses terminal to summon reinforcements. ALERT: Hostiles spotted, dispatching reinforcements to Terminal S012. O-16 Technician locks terminal. K-01 Serf cleans the Terminal. Lgt. EM Pulse Cannon destroyed. Ion Engine destroyed. Aluminum Leg destroyed. Terminal unresponsive. Critical hit (Burn: +37). C-30 ARC bursts open, deploying its payload. S-10 Pest unfolds itself. S-10 Pest suffers critical hit (Destroy). S-10 Pest destroyed. Aluminum Leg destroyed. Weapon Shielding destroyed. Map ----- +----------------------------------------------------+ | | | | | | | | | | | | | | | | | | | | | | | | | | | | | | | | | | | | | | | ???????????????????????????????????????????????? | | ???????????????????????????????????????????????? | | ???????????????????????????????????????????#???? | | ???????????????????????????????????#######?????? | | ???????????????##################### ####### | | ???????????????+ g | | ???????????????# *s @ g YY | | ???????????????# s%a= o Y k = | | ???????????????###+#+########"T"#### #####%# | | ????????????????????????????#"""#??## ##???#=# | | ????????????????????????????#####???# #??? # " | | ????????????????????????????????????# # ??# T | | ????????????????????????????????????# # # " | | ????????????????????????????????????# # / # | | ????????????????????????????????????+ # # # | | ????????????????????????????????????# # # # | | ????????????????????????????????????# # ?+ | | ????????????????????????????????????# # ? ### | | ????????????????????????????????????+ ##?????? | | ????????????????????????????????????##+##??????# | | ?????????????????????????????######????????????? | | ?????????????????????????????# #???????????#? | | ?????????????????????????????# #????????????? | | ?????????????????????????????# #??????? ????? | | ???????????????????# #???????# # " " ????? | | ?????????????#####?# #???????# # " " ????? | | ?????????????# " #?# ######### # """" ????? | | ?????????????#"G"#?# # !## # ??#?? | | ????????????##" "### # **! # ????? | | ????????????# #* ! !% # ############## | | ????????????# =# !####+##### # | +----------------------------------------------------+ Best States ------------- Heat Dissipation 28 Energy Generation 14 Energy Capacity 250 Matter Stores 300 Matter Capacity 300 Sight Range 16 Robot Scan Range 14 Terrain Scan Range 16 Terrain Scan Density 10 Armor Coverage 225 Core Shielding 20 Weapon Shielding 33 Evasion (%) 55 Recoil Reduction 1 Item Schematics ----------------- None Robot Schematics ------------------ None Fabricated ------------ Nothing Repaired ---------- Lgt. Nuclear Core | 56% | -9/Storage Studied --------- None Alien Tech Used ----------------- None Achievements -------------- Part-time Mechanic Resistances Are Futile Challenges ------------ None Game ------ Seed ScrapRefineryRouter Manual? 0 Play Time 00:51:06 Cumulative 8.5 hours Start 2025.10.26 @ 17:11:24 End 2025.10.27 @ 23:37:20 Sessions 6 Manual Loads 0 Difficulty Rogue Special Mode None Game No. 11 Rogue 11 Adventurer 0 Explorer 0 Win Type - Total 0 Types 0/0/0/0/0/0/0/0/0/0 Lore% 3 Gallery% 9 Achievement% 7 Wizard Run 0 Options --------- Layout 1 ASCII 0 Keyboard 1 Movement Arrows Keybinds 0 Fullscreen 1 Font 24/Smallcaps Map View 50x35 Zoom Use 0% Tactical HUD 0 Map Filters NONE Filters NONE Steam 1 RUN: 455569f4-49d3-4525-baa7-b3d7afdac8bd